[Event "IMSA Rapid Women 2019"]
[Site "Hengshui"]
[Date "2019.05.14"]
[Round "1.9"]
[White "Lei, Tingjie"]
[Black "Stefanova, Antoaneta"]
[Result "1/2-1/2"]
[ECO "C60"]
[WhiteElo "2507"]
[BlackElo "2470"]
[Annotator "RC"]
[PlyCount "130"]
[EventDate "2019.05.14"]
[EventType "rapid"]
[EventCountry "CHN"]
[SourceTitle "playchess.com"]
[Source "ChessBase"]
[SourceQuality "1"]
[TimeControl "900+10"]

1. e4 {[%emt 0:00:00]} e5 {[%emt 0:00:00]} 2. Nf3 {[%emt 0:00:00]} Nc6 {[%emt 0:00:00]} 3. Bb5 {[%emt 0:00:00]} g6 {[%emt 0:00:00]} 4. O-O {[%emt 0:00:10]} Bg7 {[%emt 0:00:15]} 5. c3 {[%emt 0:01:03]} a6 {[%emt 0:01:29]} 6. Ba4 {[%emt 0:00:57]} b5 {[%emt 0:01:53]} 7. Bc2 {[%emt 0:01:44]} d6 {[%emt 0:00:18]} 8. a4 {[%emt 0:00:09]} b4 {[%emt 0:01:21]} 9. h3 {[%emt 0:01:21]} Nge7 {[%emt 0:02:14]} 10. d4 {[%emt 0:00:02]} exd4 {[%emt 0:00:25]} 11. cxd4 {[%emt 0:00:13]} O-O {[%emt 0:00:05]} 12. a5 {[%emt 0:00:10]} Kh8 {[%emt 0:00:41]} 13. d5 {[%emt 0:02:32]} Na7 {[%emt 0:01:50]} 14. Nbd2 {[%emt 0:00:28]} f5 {[%emt 0:02:45]} 15. Re1 {[%emt 0:00:12]} Nb5 {[%emt 0:00:34]} 16. Nc4 {[%emt 0:00:40]} h6 {[%emt 0:00:06]} 17. Bd2 {[%emt 0:01:40]} c5 {[%emt 0:01:06]} 18. dxc6 {[%emt 0:01:24]} fxe4 {[%emt 0:00:16]} 19. Nh2 {[%emt 0:00:18]} d5 {[%emt 0:00:24]} 20. Nb6 {[%emt 0:02:35]} Ra7 {[%emt 0:00:06]} 21. Bxb4 {[%emt 0:00:17]} Bd4 {[%emt 0:01:21]} 22. Re2 {[%emt 0:00:43]} Rf5 {[%emt 0:00:09]} 23. Qd2 {[%emt 0:00:34]} g5 {[%emt 0:00:53]} 24. Ng4 {[%emt 0:00:09]} Nxc6 {[%emt 0:00:10]} 25. Nxc8 {[%emt 0:00:22]} Qxc8 {[%emt 0:00:02]} 26. Bc3 {[%emt 0:00:56]} Nxc3 {[%emt 0:00:06]} 27. bxc3 {[%emt 0:00:02]} Bg7 {[%emt 0:00:02]} 28. Ne3 {[%emt 0:00:02]} Ne7 {[%emt 0:00:45]} 29. Nxf5 {[%emt 0:00:07]} Qxf5 {[%emt 0:00:01]} 30. Rb1 {[%emt 0:00:05]} Rc7 {[%emt 0:00:03]} 31. Re3 {[%emt 0:00:22]} Be5 {[%emt 0:00:14]} 32. f3 {[%emt 0:00:20]} Qf4 {[%emt 0:00:23]} 33. fxe4 {[%emt 0:00:03]} Bxc3 {[%emt 0:00:08]} 34. Qd3 {[%emt 0:00:13]} Be5 {[%emt 0:00:04]} 35. g3 {[%emt 0:00:30]} Qf6 {[%emt 0:00:16]} 36. Rf1 {[%emt 0:00:13]} Qd6 {[%emt 0:00:08]} 37. Bb1 {[%emt 0:00:20]} Rc3 {[%emt 0:00:08]} 38. Qxc3 {[%emt 0:00:09]} Bxc3 {[%emt 0:00:01]} 39. Rxc3 {[%emt 0:00:01]} dxe4 {[%emt 0:00:05]} 40. Kh1 {[%emt 0:00:16]} Qd5 {[%emt 0:00:19]} 41. Re3 {[%emt 0:00:03]} Nf5 {[%emt 0:00:02]} 42. Bxe4 {[%emt 0:00:14]} Nxg3+ {[%emt 0:00:04]} 43. Rxg3 {[%emt 0:00:01]} Qxe4+ {[%emt 0:00:01]} 44. Kh2 {[%emt 0:00:04]} Qe2+ {[%emt 0:00:06]} 45. Kg1 {[%emt 0:00:02]} Qe5 {[%emt 0:00:06]} 46. Rgf3 {[%emt 0:00:03]} Qxa5 {[%emt 0:00:04]} 47. Rf6 {[%emt 0:00:06]} Kg7 {[%emt 0:00:05]} 48. Rc6 {[%emt 0:00:13]} Qb5 {[%emt 0:00:18]} 49. Rfc1 {[%emt 0:00:03]} a5 {[%emt 0:00:08]} 50. R1c5 {[%emt 0:00:27]} Qb1+ {[%emt 0:00:03]} 51. Kf2 {[%emt 0:00:02]} a4 {[%emt 0:00:12]} 52. Ra5 {[%emt 0:00:17]} Qb2+ {[%emt 0:00:35]} 53. Ke3 {[%emt 0:00:06]} Qb3+ {[%emt 0:00:12]} 54. Ke2 {[%emt 0:00:01]} Qb7 {[%emt 0:00:21]} 55. Raa6 {[%emt 0:00:16]} Qb2+ {[%emt 0:00:17]} 56. Kd3 {[%emt 0:00:04]} Qb3+ {[%emt 0:00:04]} 57. Ke4 {[%emt 0:00:09]} Qb4+ {[%emt 0:00:12]} 58. Kd5 {[%emt 0:00:12]} Qb5+ {[%emt 0:00:19]} 59. Kd4 {[%emt 0:00:02]} Qb4+ {[%emt 0:00:02]} 60. Kd5 {[%emt 0:00:12]} Qb5+ {[%emt 0:00:04]} 61. Kd4 {[%emt 0:00:56]} Qb4+ {[%emt 0:00:24]} 62. Kd3 {[%emt 0:00:02]} Qb3+ {[%emt 0:00:10]} 63. Ke4 {[%emt 0:00:09]} Qb4+ {[%emt 0:00:12]} 64. Ke5 {[%emt 0:00:05]} Qb5+ {[%emt 0:00:06]} 65. Kd4 {[%emt 0:00:21]} Qb4+ {[%emt 0:00:12]} 1/2-1/2

[Event "IMSA Rapid Women 2019"]
[Site "Hengshui"]
[Date "2019.05.14"]
[Round "1.10"]
[White "Ushenina, Anna"]
[Black "Muzychuk, Mariya"]
[Result "1/2-1/2"]
[ECO "D43"]
[WhiteElo "2442"]
[BlackElo "2563"]
[Annotator "RC"]
[PlyCount "172"]
[EventDate "2019.05.14"]
[EventType "rapid"]
[EventCountry "CHN"]
[SourceTitle "playchess.com"]
[Source "ChessBase"]
[SourceQuality "1"]
[TimeControl "900+10"]

1. d4 {[%emt 0:00:00]} d5 {[%emt 0:00:00]} 2. c4 {[%emt 0:00:15]} c6 {[%emt 0:00:00]} 3. Nf3 {[%emt 0:00:04]} Nf6 {[%emt 0:00:00]} 4. Nc3 {[%emt 0:00:35]} e6 {[%emt 0:00:09]} 5. Qd3 {[%emt 0:00:07]} Nbd7 {[%emt 0:02:04]} 6. g3 {[%emt 0:00:12]} Bd6 {[%emt 0:00:42]} 7. Bg2 {[%emt 0:00:08]} dxc4 {[%emt 0:01:46]} 8. Qxc4 {[%emt 0:00:03]} e5 {[%emt 0:00:04]} 9. O-O {[%emt 0:02:24]} exd4 {[%emt 0:00:19]} 10. Qxd4 {[%emt 0:01:21]} Bc5 {[%emt 0:00:00]} 11. Qh4 {[%emt 0:02:37]} O-O {[%emt 0:00:11]} 12. Rd1 {[%emt 0:02:57]} Qe7 {[%emt 0:03:23]} 13. Nd4 {[%emt 0:00:17]} Ne5 {[%emt 0:01:54]} 14. Bg5 {[%emt 0:00:27]} Neg4 {[%emt 0:00:43]} 15. Ne4 {[%emt 0:00:26]} h6 {[%emt 0:00:29]} 16. Bxf6 {[%emt 0:00:35]} Nxf6 {[%emt 0:00:04]} 17. Nxf6+ {[%emt 0:00:39]} Qxf6 {[%emt 0:00:02]} 18. Qxf6 {[%emt 0:00:01]} gxf6 {[%emt 0:00:01]} 19. h3 {[%emt 0:00:11]} Be6 {[%emt 0:00:18]} 20. Nxe6 {[%emt 0:00:14]} fxe6 {[%emt 0:00:01]} 21. Rd7 {[%emt 0:00:02]} Rf7 {[%emt 0:00:08]} 22. Rad1 {[%emt 0:00:04]} Raf8 {[%emt 0:00:05]} 23. Bf3 {[%emt 0:00:21]} Rxd7 {[%emt 0:00:13]} 24. Rxd7 {[%emt 0:00:01]} Rf7 {[%emt 0:00:01]} 25. Rd3 {[%emt 0:00:19]} f5 {[%emt 0:00:43]} 26. e3 {[%emt 0:00:04]} Kg7 {[%emt 0:00:21]} 27. Bh5 {[%emt 0:00:10]} Re7 {[%emt 0:00:05]} 28. Rd8 {[%emt 0:00:05]} Bb6 {[%emt 0:00:07]} 29. Rb8 {[%emt 0:00:09]} Rd7 {[%emt 0:01:16]} 30. Be8 {[%emt 0:01:00]} Re7 {[%emt 0:00:04]} 31. b3 {[%emt 0:00:26]} Kf6 {[%emt 0:00:23]} 32. Kf1 {[%emt 0:00:37]} e5 {[%emt 0:01:00]} 33. Bh5 {[%emt 0:00:09]} Kg7 {[%emt 0:00:03]} 34. Be2 {[%emt 0:00:13]} Rd7 {[%emt 0:00:11]} 35. Re8 {[%emt 0:00:19]} Kf6 {[%emt 0:01:09]} 36. Bc4 {[%emt 0:00:14]} Re7 {[%emt 0:00:08]} 37. Rf8+ {[%emt 0:00:07]} Kg6 {[%emt 0:00:01]} 38. Bd3 {[%emt 0:00:12]} e4 {[%emt 0:00:10]} 39. Bc4 {[%emt 0:00:02]} Bc7 {[%emt 0:00:14]} 40. a4 {[%emt 0:00:09]} a6 {[%emt 0:00:02]} 41. g4 {[%emt 0:01:11]} fxg4 {[%emt 0:00:18]} 42. hxg4 {[%emt 0:00:14]} Bd6 {[%emt 0:00:26]} 43. Rg8+ {[%emt 0:00:24]} Kf6 {[%emt 0:00:06]} 44. Kg2 {[%emt 0:00:41]} Re5 {[%emt 0:00:34]} 45. Rh8 {[%emt 0:00:23]} Kg6 {[%emt 0:00:08]} 46. Rd8 {[%emt 0:00:05]} Be7 {[%emt 0:00:17]} 47. Rd7 {[%emt 0:00:13]} b5 {[%emt 0:00:13]} 48. axb5 {[%emt 0:00:04]} cxb5 {[%emt 0:00:31]} 49. Be2 {[%emt 0:00:07]} Kf6 {[%emt 0:00:03]} 50. Ra7 {[%emt 0:00:09]} Re6 {[%emt 0:00:02]} 51. Kh3 {[%emt 0:00:30]} Bb4 {[%emt 0:00:15]} 52. Rh7 {[%emt 0:00:17]} Kg6 {[%emt 0:00:03]} 53. Rd7 {[%emt 0:00:18]} Be1 {[%emt 0:00:11]} 54. Kg2 {[%emt 0:00:09]} Rf6 {[%emt 0:00:10]} 55. f4 {[%emt 0:00:02]} exf3+ {[%emt 0:00:02]} 56. Bxf3 {[%emt 0:00:01]} Re6 {[%emt 0:00:04]} 57. Rd3 {[%emt 0:00:23]} a5 {[%emt 0:00:08]} 58. Bd5 {[%emt 0:00:11]} Ra6 {[%emt 0:00:44]} 59. Be4+ {[%emt 0:00:07]} Kf6 {[%emt 0:00:07]} 60. Rd1 {[%emt 0:00:12]} Bc3 {[%emt 0:00:45]} 61. Bd3 {[%emt 0:00:06]} Rb6 {[%emt 0:00:47]} 62. Rf1+ {[%emt 0:00:15]} Kg7 {[%emt 0:00:02]} 63. Rc1 {[%emt 0:00:11]} Bd2 {[%emt 0:00:13]} 64. Rc7+ {[%emt 0:00:02]} Kf6 {[%emt 0:00:03]} 65. Kf3 {[%emt 0:00:01]} Re6 {[%emt 0:00:28]} 66. Be4 {[%emt 0:00:14]} Ra6 {[%emt 0:00:19]} 67. Ke2 {[%emt 0:00:35]} Bb4 {[%emt 0:00:07]} 68. Rb7 {[%emt 0:00:06]} Re6 {[%emt 0:00:10]} 69. Kf3 {[%emt 0:00:12]} Re5 {[%emt 0:00:16]} 70. Rb6+ {[%emt 0:00:10]} Kg7 {[%emt 0:00:04]} 71. Kf4 {[%emt 0:00:16]} Rc5 {[%emt 0:00:20]} 72. Rg6+ {[%emt 0:00:15]} Kf7 {[%emt 0:00:00]} 73. Rxh6 {[%emt 0:00:04]} a4 {[%emt 0:00:01]} 74. bxa4 {[%emt 0:00:02]} bxa4 {[%emt 0:00:01]} 75. Ra6 {[%emt 0:00:02]} Ra5 {[%emt 0:00:19]} 76. Rxa5 {[%emt 0:00:47]} Bxa5 77. Kf5 {[%emt 0:00:08]} a3 {[%emt 0:00:23]} 78. Bd5+ {[%emt 0:00:01]} Kg7 {[%emt 0:00:11]} 79. e4 {[%emt 0:00:06]} Bc3 {[%emt 0:00:11]} 80. Ba2 {[%emt 0:00:05]} Bd4 {[%emt 0:00:11]} 81. e5 {[%emt 0:00:21]} Bc3 {[%emt 0:00:01]} 82. Bb1 {[%emt 0:00:04]} Bd4 {[%emt 0:00:06]} 83. Ke6 {[%emt 0:00:09]} Kh6 {[%emt 0:00:34]} 84. Kf5 {[%emt 0:00:08]} Bxe5 {[%emt 0:00:07]} 85. Kxe5 {[%emt 0:00:06]} Kg5 {[%emt 0:00:01]} 86. Kd4 {[%emt 0:00:01]} Kxg4 {[%emt 0:00:01]} 1/2-1/2

[Event "IMSA Rapid Women 2019"]
[Site "Hengshui"]
[Date "2019.05.14"]
[Round "1.16"]
[White "Khotenashvili, Bela"]
[Black "Koneru, Humpy"]
[Result "0-1"]
[ECO "A05"]
[WhiteElo "2476"]
[BlackElo "2553"]
[Annotator "RC"]
[PlyCount "138"]
[EventDate "2019.05.14"]
[EventType "rapid"]
[EventCountry "CHN"]
[SourceTitle "playchess.com"]
[Source "ChessBase"]
[SourceQuality "1"]
[TimeControl "900+10"]

1. Nf3 {[%emt 0:00:00]} Nf6 {[%emt 0:00:00]} 2. g3 {[%emt 0:00:00]} d5 {[%emt 0:00:09]} 3. Bg2 {[%emt 0:00:01]} e6 {[%emt 0:00:13]} 4. O-O {[%emt 0:00:03]} b5 {[%emt 0:00:06]} 5. a4 {[%emt 0:01:13]} b4 {[%emt 0:00:04]} 6. d3 {[%emt 0:00:02]} Bb7 {[%emt 0:00:23]} 7. Nbd2 {[%emt 0:00:03]} Be7 {[%emt 0:00:41]} 8. e4 {[%emt 0:00:17]} c5 {[%emt 0:00:28]} 9. Re1 {[%emt 0:00:35]} Nc6 {[%emt 0:00:33]} 10. e5 {[%emt 0:01:55]} Nd7 {[%emt 0:00:07]} 11. Nf1 {[%emt 0:00:02]} g5 {[%emt 0:02:25]} 12. h3 {[%emt 0:03:48]} h5 {[%emt 0:00:11]} 13. g4 {[%emt 0:00:22]} hxg4 {[%emt 0:03:25]} 14. hxg4 {[%emt 0:00:01]} Qc7 {[%emt 0:02:01]} 15. Qe2 {[%emt 0:00:47]} O-O-O {[%emt 0:00:03]} 16. Ng3 {[%emt 0:00:36]} Rdg8 {[%emt 0:00:47]} 17. c3 {[%emt 0:00:32]} Kb8 {[%emt 0:00:21]} 18. Bd2 {[%emt 0:01:37]} a5 {[%emt 0:00:02]} 19. cxb4 {[%emt 0:00:10]} axb4 {[%emt 0:00:07]} 20. b3 {[%emt 0:01:11]} Ba6 {[%emt 0:00:13]} 21. Rac1 {[%emt 0:00:47]} Rh4 {[%emt 0:00:39]} 22. Nxh4 {[%emt 0:00:47]} gxh4 {[%emt 0:00:07]} 23. Nh5 {[%emt 0:00:34]} Ncxe5 {[%emt 0:04:25]} 24. Bf4 {[%emt 0:01:58]} Bd6 {[%emt 0:00:02]} 25. Bxe5 {[%emt 0:00:50]} Nxe5 {[%emt 0:00:13]} 26. Nf6 {[%emt 0:00:03]} Rh8 {[%emt 0:01:22]} 27. Red1 {[%emt 0:00:10]} Nc6 {[%emt 0:00:03]} 28. Qe3 {[%emt 0:00:55]} Nd4 {[%emt 0:00:07]} 29. Qxd4 {[%emt 0:00:14]} cxd4 {[%emt 0:00:03]} 30. Rxc7 {[%emt 0:00:01]} Kxc7 {[%emt 0:00:04]} 31. Rc1+ {[%emt 0:00:11]} Kb7 {[%emt 0:00:06]} 32. Bf1 {[%emt 0:00:16]} Be7 {[%emt 0:00:19]} 33. Nd7 {[%emt 0:00:13]} Rg8 {[%emt 0:00:16]} 34. f3 {[%emt 0:00:08]} f5 {[%emt 0:00:04]} 35. Be2 {[%emt 0:00:07]} fxg4 {[%emt 0:00:07]} 36. fxg4 {[%emt 0:00:01]} Rg5 {[%emt 0:00:30]} 37. Kg2 {[%emt 0:00:14]} Ka8 {[%emt 0:00:11]} 38. Kh3 {[%emt 0:00:13]} Bb7 {[%emt 0:00:03]} 39. Rf1 {[%emt 0:00:15]} Rg7 {[%emt 0:00:03]} 40. Ne5 {[%emt 0:00:09]} Kb8 {[%emt 0:00:06]} 41. Bd1 {[%emt 0:00:15]} Kc7 {[%emt 0:00:03]} 42. Be2 {[%emt 0:00:04]} Kd6 {[%emt 0:00:15]} 43. Nf7+ {[%emt 0:00:01]} Kd7 {[%emt 0:00:01]} 44. Ne5+ {[%emt 0:00:10]} Ke8 {[%emt 0:00:05]} 45. Nf3 {[%emt 0:00:09]} Bc5 {[%emt 0:00:19]} 46. Rc1 {[%emt 0:00:03]} Bb6 {[%emt 0:00:02]} 47. Nxh4 {[%emt 0:00:03]} e5 {[%emt 0:00:25]} 48. Nf5 {[%emt 0:00:01]} Rh7+ {[%emt 0:00:17]} 49. Kg3 {[%emt 0:00:06]} Bc7 {[%emt 0:00:05]} 50. g5 {[%emt 0:00:27]} e4+ {[%emt 0:00:17]} 51. Kg4 {[%emt 0:00:01]} Be5 {[%emt 0:00:06]} 52. g6 {[%emt 0:00:09]} Rh2 {[%emt 0:00:07]} 53. Bf1 {[%emt 0:00:05]} Kf8 {[%emt 0:00:16]} 54. Rc5 {[%emt 0:00:20]} Rf2 {[%emt 0:00:08]} 55. Rc1 {[%emt 0:00:34]} e3 {[%emt 0:00:01]} 56. Ng3 {[%emt 0:00:07]} Kg7 {[%emt 0:00:17]} 57. Be2 {[%emt 0:00:09]} Kxg6 {[%emt 0:00:05]} 58. Bf3 {[%emt 0:00:01]} Kf6 {[%emt 0:00:29]} 59. Ne2 {[%emt 0:00:05]} Rh2 {[%emt 0:00:06]} 60. Rc5 {[%emt 0:00:08]} Rh8 {[%emt 0:00:06]} 61. Bxd5 {[%emt 0:00:26]} Bc8+ {[%emt 0:00:02]} 62. Kf3 {[%emt 0:00:02]} Rh3+ {[%emt 0:00:11]} 63. Kg2 {[%emt 0:00:02]} Rh2+ {[%emt 0:00:07]} 64. Kf1 {[%emt 0:00:01]} Bg4 {[%emt 0:00:22]} 65. Rc2 {[%emt 0:00:12]} Bh3+ {[%emt 0:00:07]} 66. Ke1 {[%emt 0:00:21]} Rf2 {[%emt 0:00:17]} 67. Rc6+ {[%emt 0:00:08]} Kg5 {[%emt 0:00:05]} 68. Nc1 {[%emt 0:00:32]} Bg3 {[%emt 0:00:02]} 69. Be4 {[%emt 0:00:09]} Rd2# {[%emt 0:00:05]} 0-1

[Event "IMSA Rapid Women 2019"]
[Site "Hengshui"]
[Date "2019.05.14"]
[Round "2.10"]
[White "Gunina, Valentina"]
[Black "Dzagnidze, Nana"]
[Result "1-0"]
[ECO "C07"]
[WhiteElo "2506"]
[BlackElo "2510"]
[Annotator "RC"]
[PlyCount "67"]
[EventDate "2019.05.14"]
[EventType "rapid"]
[EventCountry "CHN"]
[SourceTitle "playchess.com"]
[Source "ChessBase"]
[SourceQuality "1"]
[TimeControl "900+10"]

1. e4 {[%emt 0:00:00]} e6 {[%emt 0:00:19]} 2. d4 {[%emt 0:00:00]} d5 {[%emt 0:00:02]} 3. Nd2 {[%emt 0:00:00]} c5 {[%emt 0:00:13]} 4. Ngf3 {[%emt 0:00:16]} cxd4 {[%emt 0:00:06]} 5. exd5 {[%emt 0:00:02]} Qxd5 {[%emt 0:00:05]} 6. Bc4 {[%emt 0:00:02]} Qd6 {[%emt 0:00:26]} 7. O-O {[%emt 0:00:14]} Nf6 {[%emt 0:00:01]} 8. Nb3 {[%emt 0:00:08]} Nc6 {[%emt 0:00:23]} 9. Nbxd4 {[%emt 0:00:13]} Nxd4 {[%emt 0:00:20]} 10. Nxd4 {[%emt 0:00:02]} a6 {[%emt 0:01:17]} 11. c3 {[%emt 0:00:03]} Qc7 {[%emt 0:00:21]} 12. Qe2 {[%emt 0:00:10]} Bd6 {[%emt 0:00:54]} 13. h3 {[%emt 0:00:51]} O-O {[%emt 0:01:04]} 14. Bg5 {[%emt 0:00:08]} e5 {[%emt 0:00:33]} 15. Nc2 {[%emt 0:00:15]} Nd7 {[%emt 0:00:36]} 16. Ne3 {[%emt 0:00:57]} Nb6 {[%emt 0:00:16]} 17. Bb3 {[%emt 0:00:12]} Kh8 {[%emt 0:00:14]} 18. Rad1 {[%emt 0:00:46]} f6 {[%emt 0:03:25]} 19. Bh4 {[%emt 0:00:02]} Bd7 {[%emt 0:01:06]} 20. Bc2 {[%emt 0:00:59]} f5 {[%emt 0:00:58]} 21. Nxf5 {[%emt 0:00:26]} Rxf5 {[%emt 0:02:39]} 22. g4 {[%emt 0:00:05]} e4 {[%emt 0:00:38]} 23. gxf5 {[%emt 0:00:24]} Bxf5 {[%emt 0:00:02]} 24. Bxe4 {[%emt 0:00:20]} Re8 {[%emt 0:00:03]} 25. f3 {[%emt 0:00:17]} Bxh3 {[%emt 0:00:08]} 26. Rfe1 {[%emt 0:02:12]} Nc4 {[%emt 0:00:08]} 27. Kh1 {[%emt 0:00:38]} Bf4 {[%emt 0:00:11]} 28. Bd8 {[%emt 0:00:46]} Rxd8 {[%emt 0:00:29]} 29. Bf5 {[%emt 0:02:02]} Bg2+ {[%emt 0:00:53]} 30. Qxg2 {[%emt 0:00:28]} Ne3 {[%emt 0:00:09]} 31. Qh3 {[%emt 0:00:33]} h6 {[%emt 0:00:17]} 32. Qh5 {[%emt 0:01:43]} Nxf5 {[%emt 0:01:24]} 33. Rxd8+ {[%emt 0:00:09]} Qxd8 {[%emt 0:00:02]} 34. Re8+ {[%emt 0:00:02]} 1-0

[Event "IMSA Rapid Women 2019"]
[Site "Hengshui"]
[Date "2019.05.14"]
[Round "3.12"]
[White "Dzagnidze, Nana"]
[Black "Stefanova, Antoaneta"]
[Result "1-0"]
[ECO "C54"]
[WhiteElo "2510"]
[BlackElo "2470"]
[Annotator "RC"]
[PlyCount "81"]
[EventDate "2019.05.14"]
[EventType "rapid"]
[EventCountry "CHN"]
[SourceTitle "playchess.com"]
[Source "ChessBase"]
[SourceQuality "1"]
[TimeControl "900+10"]

1. e4 {[%emt 0:00:00]} e5 {[%emt 0:00:00]} 2. Nf3 {[%emt 0:00:00]} Nc6 {[%emt 0:00:00]} 3. Bc4 {[%emt 0:00:00]} Bc5 {[%emt 0:00:00]} 4. c3 {[%emt 0:00:02]} Nf6 {[%emt 0:00:00]} 5. d4 {[%emt 0:00:04]} exd4 {[%emt 0:00:01]} 6. e5 {[%emt 0:00:02]} d5 {[%emt 0:00:07]} 7. Bb5 {[%emt 0:00:21]} Ne4 {[%emt 0:00:07]} 8. cxd4 {[%emt 0:00:02]} Bb6 {[%emt 0:00:04]} 9. Nc3 {[%emt 0:00:26]} O-O {[%emt 0:01:36]} 10. Be3 {[%emt 0:00:11]} Bg4 {[%emt 0:02:36]} 11. h3 {[%emt 0:00:09]} Bh5 {[%emt 0:00:01]} 12. Qc2 {[%emt 0:00:16]} Bg6 {[%emt 0:00:17]} 13. Qb3 {[%emt 0:00:12]} Ne7 {[%emt 0:00:17]} 14. O-O {[%emt 0:00:03]} c6 {[%emt 0:00:33]} 15. Bd3 {[%emt 0:00:23]} Nd2 {[%emt 0:03:49]} 16. Nxd2 {[%emt 0:02:42]} Bxd3 {[%emt 0:00:03]} 17. Rfe1 {[%emt 0:00:03]} Bg6 {[%emt 0:01:13]} 18. Nf3 {[%emt 0:01:34]} Nf5 {[%emt 0:00:37]} 19. Na4 {[%emt 0:02:42]} Ba5 {[%emt 0:01:44]} 20. Re2 {[%emt 0:00:15]} Nxe3 {[%emt 0:00:12]} 21. Rxe3 {[%emt 0:00:09]} Rb8 {[%emt 0:00:39]} 22. a3 {[%emt 0:00:49]} Bf5 {[%emt 0:01:44]} 23. Qd1 {[%emt 0:02:28]} f6 {[%emt 0:00:21]} 24. Nc5 {[%emt 0:00:42]} fxe5 {[%emt 0:00:30]} 25. Nxe5 {[%emt 0:00:20]} Bc7 {[%emt 0:00:12]} 26. Qe2 {[%emt 0:01:00]} Qd6 {[%emt 0:01:10]} 27. Rf1 {[%emt 0:01:08]} Bd8 {[%emt 0:00:19]} 28. b4 {[%emt 0:00:56]} b6 {[%emt 0:00:22]} 29. Ncd3 {[%emt 0:00:04]} a5 {[%emt 0:00:23]} 30. bxa5 {[%emt 0:00:48]} bxa5 {[%emt 0:00:21]} 31. Nc5 {[%emt 0:00:01]} Bf6 {[%emt 0:00:26]} 32. Qd2 {[%emt 0:00:45]} Rb5 {[%emt 0:00:09]} 33. Qc3 {[%emt 0:01:09]} Rfb8 {[%emt 0:00:13]} 34. g4 {[%emt 0:00:12]} Bb1 {[%emt 0:00:16]} 35. Ned7 {[%emt 0:00:16]} Bg5 {[%emt 0:00:13]} 36. Re6 {[%emt 0:00:14]} Rxc5 {[%emt 0:00:10]} 37. Nxc5 {[%emt 0:00:08]} Qf4 {[%emt 0:00:05]} 38. Nd7 {[%emt 0:00:21]} Rd8 {[%emt 0:00:10]} 39. Rxb1 {[%emt 0:00:05]} Rxd7 {[%emt 0:00:01]} 40. Qxc6 {[%emt 0:00:11]} Bh4 {[%emt 0:00:22]} 41. Re8+ {[%emt 0:00:03]} 1-0

[Event "IMSA Rapid Women 2019"]
[Site "Hengshui"]
[Date "2019.05.14"]
[Round "3.16"]
[White "Paehtz, Elisabeth"]
[Black "Zhao, Xue"]
[Result "0-1"]
[ECO "A80"]
[WhiteElo "2470"]
[BlackElo "2485"]
[Annotator "RC"]
[PlyCount "150"]
[EventDate "2019.05.14"]
[EventType "rapid"]
[EventCountry "CHN"]
[SourceTitle "playchess.com"]
[Source "ChessBase"]
[SourceQuality "1"]
[TimeControl "900+10"]

1. d4 {[%emt 0:00:00]} f5 {[%emt 0:00:00]} 2. e3 {[%emt 0:00:11]} Nf6 {[%emt 0:00:00]} 3. b3 {[%emt 0:00:03]} g6 {[%emt 0:00:00]} 4. Bb2 {[%emt 0:00:04]} Bg7 {[%emt 0:00:00]} 5. h4 {[%emt 0:00:04]} d6 {[%emt 0:00:38]} 6. Be2 {[%emt 0:00:04]} h6 {[%emt 0:05:43]} 7. Nh3 {[%emt 0:00:02]} Be6 {[%emt 0:00:06]} 8. Nf4 {[%emt 0:00:49]} Bf7 {[%emt 0:00:01]} 9. Qd3 {[%emt 0:01:07]} Nbd7 {[%emt 0:02:42]} 10. h5 {[%emt 0:00:14]} g5 {[%emt 0:00:06]} 11. Ng6 {[%emt 0:00:02]} Bxg6 {[%emt 0:00:04]} 12. hxg6 {[%emt 0:00:02]} e6 {[%emt 0:00:06]} 13. d5 {[%emt 0:00:36]} Qe7 {[%emt 0:00:07]} 14. dxe6 {[%emt 0:00:16]} Qxe6 {[%emt 0:00:16]} 15. Qc4 {[%emt 0:01:17]} Ke7 {[%emt 0:02:16]} 16. Nd2 {[%emt 0:00:47]} Qxc4 {[%emt 0:01:30]} 17. Nxc4 {[%emt 0:00:01]} Nf8 {[%emt 0:00:14]} 18. Na5 {[%emt 0:00:42]} Rb8 {[%emt 0:00:05]} 19. Bf3 {[%emt 0:00:29]} Nxg6 {[%emt 0:00:17]} 20. Bxb7 {[%emt 0:00:05]} Kf7 {[%emt 0:00:06]} 21. O-O-O {[%emt 0:01:14]} Rhe8 {[%emt 0:00:17]} 22. Bc6 {[%emt 0:01:09]} Rf8 {[%emt 0:01:02]} 23. Bd4 {[%emt 0:00:24]} Ne7 {[%emt 0:00:27]} 24. Bf3 {[%emt 0:00:52]} Ne4 {[%emt 0:00:32]} 25. Rhf1 {[%emt 0:00:53]} g4 {[%emt 0:01:10]} 26. Be2 {[%emt 0:00:29]} Bxd4 {[%emt 0:00:28]} 27. Rxd4 {[%emt 0:00:02]} Nc3 {[%emt 0:00:02]} 28. Bc4+ {[%emt 0:01:29]} d5 {[%emt 0:00:10]} 29. Kb2 {[%emt 0:01:08]} c5 {[%emt 0:00:33]} 30. Rd2 {[%emt 0:00:06]} Na4+ {[%emt 0:00:12]} 31. Ka3 {[%emt 0:00:01]} Nb6 {[%emt 0:00:09]} 32. Be2 {[%emt 0:00:09]} Kf6 {[%emt 0:00:46]} 33. c4 {[%emt 0:00:02]} dxc4 {[%emt 0:00:06]} 34. Nxc4 {[%emt 0:00:03]} Nbd5 {[%emt 0:00:05]} 35. Kb2 {[%emt 0:00:23]} Ke6 {[%emt 0:00:15]} 36. Rfd1 {[%emt 0:00:31]} h5 {[%emt 0:00:12]} 37. g3 {[%emt 0:00:01]} Nf6 {[%emt 0:00:16]} 38. Rd6+ {[%emt 0:00:03]} Kf7 {[%emt 0:00:01]} 39. Ne5+ {[%emt 0:00:45]} Kg7 {[%emt 0:00:00]} 40. Nd7 {[%emt 0:00:07]} Nxd7 {[%emt 0:00:22]} 41. Rxd7 {[%emt 0:00:01]} Rfe8 {[%emt 0:00:03]} 42. Rxa7 {[%emt 0:00:04]} Rb6 {[%emt 0:00:07]} 43. Rc7 {[%emt 0:00:26]} Kf6 {[%emt 0:00:08]} 44. Rxc5 {[%emt 0:00:03]} Ng6 {[%emt 0:00:07]} 45. Bb5 {[%emt 0:00:16]} Re7 {[%emt 0:00:11]} 46. a4 {[%emt 0:00:23]} Ne5 {[%emt 0:00:09]} 47. a5 {[%emt 0:00:05]} Rb8 {[%emt 0:00:07]} 48. Rd6+ {[%emt 0:00:03]} Kg5 {[%emt 0:00:07]} 49. Rdd5 {[%emt 0:00:52]} Kf6 {[%emt 0:00:00]} 50. Be2 {[%emt 0:00:07]} Rbb7 {[%emt 0:00:42]} 51. a6 {[%emt 0:00:09]} Rb8 {[%emt 0:00:01]} 52. Rb5 {[%emt 0:00:23]} Ra8 {[%emt 0:00:04]} 53. Rb6+ {[%emt 0:00:04]} Kg5 {[%emt 0:00:01]} 54. Rb7 {[%emt 0:00:15]} Re6 {[%emt 0:00:05]} 55. b4 {[%emt 0:00:17]} h4 {[%emt 0:00:06]} 56. gxh4+ {[%emt 0:00:02]} Kxh4 {[%emt 0:00:00]} 57. b5 {[%emt 0:00:19]} Kh3 {[%emt 0:00:02]} 58. Bf1+ {[%emt 0:00:39]} Kh2 {[%emt 0:00:00]} 59. a7 {[%emt 0:00:56]} Kg1 {[%emt 0:00:04]} 60. b6 {[%emt 0:00:36]} Kxf1 {[%emt 0:00:02]} 61. Rb8 {[%emt 0:00:00]} Nc4+ {[%emt 0:00:01]} 62. Kc3 {[%emt 0:00:03]} Nxb6 {[%emt 0:00:01]} 63. Rxa8 {[%emt 0:00:04]} Nxd5+ {[%emt 0:00:36]} 64. Kd4 {[%emt 0:00:01]} Nc7 {[%emt 0:00:07]} 65. Rf8 {[%emt 0:00:14]} Ra6 {[%emt 0:00:08]} 66. Rxf5 {[%emt 0:00:07]} Rxa7 {[%emt 0:00:07]} 67. Rf6 {[%emt 0:00:10]} Kg2 {[%emt 0:00:27]} 68. Kd3 {[%emt 0:00:10]} Nd5 {[%emt 0:00:28]} 69. Rf5 {[%emt 0:00:01]} Ra3+ {[%emt 0:00:04]} 70. Kd4 {[%emt 0:00:04]} Ne7 {[%emt 0:00:21]} 71. Rf7 {[%emt 0:00:24]} Nc6+ {[%emt 0:00:09]} 72. Kd5 {[%emt 0:00:18]} Nb4+ {[%emt 0:00:01]} 73. Kd6 {[%emt 0:00:57]} Ra6+ {[%emt 0:00:15]} 74. Kc5 {[%emt 0:00:06]} Nd3+ {[%emt 0:00:01]} 75. Kb5 {[%emt 0:00:01]} Re6 {[%emt 0:00:04]} 0-1